Workbook

Sheet INGRESO DE DATOS
A8: COTIZACION DE SEGURO MEDICO INTERNACIONAL
A10: (Para nuevos negocios y renovaciones con fecha de emisión a partir del 1 de enero de 2022)
A12: 1. INGRESE LOS DATOS DEL PROPUESTO ASEGURADO :
C14: Nombre del Asegurado principal : | D14: NOMBRE COMPLETO
F16: Número de adultos en la póliza : | G16: 1 | I16: Número de hijos en la póliza : | J16: 0
F18: Edad del titular : | G18: 18 | I18: Edad de cónyuge : | J18: 46
A21: 2. INGRESE EL NOMBRE DE LA AGENCIA ASESORA :
C23: Nombre de la Agencia : | D23: AGENTE
A26: 3. ESCOJA EL PRODUCTO PARA VISUALIZAR LA COTIZACION RESPECTIVA :

Sheet Exclusive
C10: Cotización de Seguro Médico Internacional - Bupa EXCLUSIVE Care
H12: =+'INGRESO DE DATOS'!$D$14 -> NOMBRE COMPLETO
H14: =+'INGRESO DE DATOS'!$D$23 -> AGENTE
J16: =+'INGRESO DE DATOS'!$G$16 -> 1 | M16: =+'INGRESO DE DATOS'!$G$18 -> 18
F17: FECHA DE COTIZACION :
F18: =NOW() -> 2022-01-06T13:36:44.600 | J18: =+'INGRESO DE DATOS'!$J$16 -> 0 | M18: =+'INGRESO DE DATOS'!$J$18 -> 46
I20: FALSE | K20: COMPLICACIONES DE MATERNIDAD
J22: FALSE
F25: Deducibles | H25: PLAN 1 | I25: PLAN 2 | J25: PLAN 3 | K25: PLAN 4 | L25: PLAN 5 | M25: PLAN 6
F26: Dentro del pais de residencia | H26: n/a | I26: 1000 | J26: 2000 | K26: 5000 | L26: 10000 | M26: 20000
F27: Fuera del pais de residencia | H27: n/a | I27: 2000 | J27: 3000 | K27: 5000 | L27: 10000 | M27: 20000
F30: Tarifas Anuales
F31: Prima de Titular : | H31: n/a | I31: =VLOOKUP($M$16,Tablas!$A$6:$H$29,4,TRUE) -> 8563 | J31: =VLOOKUP($M$16,Tablas!$A$6:$H$29,5,TRUE) -> 5665 | K31: =VLOOKUP($M$16,Tablas!$A$6:$H$29,6,TRUE) -> 4043 | L31: =VLOOKUP($M$16,Tablas!$A$6:$H$29,7,TRUE) -> 2853 | M31: =VLOOKUP($M$16,Tablas!$A$6:$H$29,8,TRUE) -> 2243
F32: Prima de Cónyuge | H32: n/a | I32: =IF($J$16=1,0,(VLOOKUP($M$18,Tablas!$A$6:$H$29,4,TRUE))) -> 0 | J32: =IF($J$16=1,0,(VLOOKUP($M$18,Tablas!$A$6:$H$29,5,TRUE))) -> 0 | K32: =IF($J$16=1,0,(VLOOKUP($M$18,Tablas!$A$6:$H$29,6,TRUE))) -> 0 | L32: =IF($J$16=1,0,(VLOOKUP($M$18,Tablas!$A$6:$H$29,7,TRUE))) -> 0 | M32: =IF($J$16=1,0,(VLOOKUP($M$18,Tablas!$A$6:$H$29,8,TRUE))) -> 0
F33: Primas Hijos : | H33: n/a | I33: =IF($J$18=0,0,(VLOOKUP($J$18,Tablas!$A$30:$H$32,4,TRUE))) -> 0 | J33: =IF($J$18=0,0,(VLOOKUP($J$18,Tablas!$A$30:$H$32,5,TRUE))) -> 0 | K33: =IF($J$18=0,0,(VLOOKUP($J$18,Tablas!$A$30:$H$32,6,TRUE))) -> 0 | L33: =IF($J$18=0,0,(VLOOKUP($J$18,Tablas!$A$30:$H$32,7,TRUE))) -> 0 | M33: =IF($J$18=0,0,(VLOOKUP($J$18,Tablas!$A$30:$H$32,8,TRUE))) -> 0
F34: Prima Rider Complic. Maternidad | H34: n/a | I34: =+IF($I$20=FALSE,0,Tablas!D$33) -> 0 | J34: =+IF($I$20=FALSE,0,Tablas!E$33) -> 0 | K34: =+IF($I$20=FALSE,0,Tablas!F$33) -> 0 | L34: =+IF($I$20=FALSE,0,Tablas!G$33) -> 0 | M34: =+IF($I$20=FALSE,0,Tablas!H$33) -> 0
F35: TOTAL PRIMA NETA : | H35: n/a | I35: =SUM(I31:I34) -> 8563 | J35: =SUM(J31:J34) -> 5665 | K35: =SUM(K31:K34) -> 4043 | L35: =SUM(L31:L34) -> 2853 | M35: =SUM(M31:M34) -> 2243
F36: Costo Administrativo Anual : | H36: n/a | I36: 75 | J36: 75 | K36: 75 | L36: 75 | M36: 75
F37: GRAN TOTAL : | H37: n/a | I37: =SUM(I35:I36) -> 8638 | J37: =SUM(J35:J36) -> 5740 | K37: =SUM(K35:K36) -> 4118 | L37: =SUM(L35:L36) -> 2928 | M37: =SUM(M35:M36) -> 2318
F39: Tarifas Semestrales
F40: Prima de Titular : | H40: n/a | I40: =VLOOKUP($M$16,Tablas!$A$39:$H$62,4,TRUE) -> 4538.39 | J40: =VLOOKUP($M$16,Tablas!$A$39:$H$62,5,TRUE) -> 3002.45 | K40: =VLOOKUP($M$16,Tablas!$A$39:$H$62,6,TRUE) -> 2142.79 | L40: =VLOOKUP($M$16,Tablas!$A$39:$H$62,7,TRUE) -> 1512.09 | M40: =VLOOKUP($M$16,Tablas!$A$39:$H$62,8,TRUE) -> 1188.79
F41: Prima de Cónyuge | H41: n/a | I41: =IF($J$16=1,0,(VLOOKUP($M$18,Tablas!$A$39:$H$62,4,TRUE))) -> 0 | J41: =IF($J$16=1,0,(VLOOKUP($M$18,Tablas!$A$39:$H$62,5,TRUE))) -> 0 | K41: =IF($J$16=1,0,(VLOOKUP($M$18,Tablas!$A$39:$H$62,6,TRUE))) -> 0 | L41: =IF($J$16=1,0,(VLOOKUP($M$18,Tablas!$A$39:$H$62,7,TRUE))) -> 0 | M41: =IF($J$16=1,0,(VLOOKUP($M$18,Tablas!$A$39:$H$62,8,TRUE))) -> 0
F42: Primas Hijos : | H42: n/a | I42: =IF($J$18=0,0,(VLOOKUP($J$18,Tablas!$A$63:$H$65,4,TRUE))) -> 0 | J42: =IF($J$18=0,0,(VLOOKUP($J$18,Tablas!$A$63:$H$65,5,TRUE))) -> 0 | K42: =IF($J$18=0,0,(VLOOKUP($J$18,Tablas!$A$63:$H$65,6,TRUE))) -> 0 | L42: =IF($J$18=0,0,(VLOOKUP($J$18,Tablas!$A$63:$H$65,7,TRUE))) -> 0 | M42: =IF($J$18=0,0,(VLOOKUP($J$18,Tablas!$A$63:$H$65,8,TRUE))) -> 0
F43: Prima Rider Complic. Maternidad | H43: n/a | I43: =+IF($I$20=FALSE,0,Tablas!D$66) -> 0 | J43: =+IF($I$20=FALSE,0,Tablas!E$66) -> 0 | K43: =+IF($I$20=FALSE,0,Tablas!F$66) -> 0 | L43: =+IF($I$20=FALSE,0,Tablas!G$66) -> 0 | M43: =+IF($I$20=FALSE,0,Tablas!H$66) -> 0
F44: TOTAL PRIMA NETA : | H44: n/a | I44: =SUM(I40:I43) -> 4538.39 | J44: =SUM(J40:J43) -> 3002.45 | K44: =SUM(K40:K43) -> 2142.79 | L44: =SUM(L40:L43) -> 1512.09 | M44: =SUM(M40:M43) -> 1188.79
F45: Costo Administrativo Anual : | H45: n/a | I45: 75 | J45: 75 | K45: 75 | L45: 75 | M45: 75
F46: GRAN TOTAL (1ra Cuota) : | H46: n/a | I46: =SUM(I44:I45) -> 4613.39 | J46: =SUM(J44:J45) -> 3077.45 | K46: =SUM(K44:K45) -> 2217.79 | L46: =SUM(L44:L45) -> 1587.09 | M46: =SUM(M44:M45) -> 1263.79
F47: GRAN TOTAL (2da Cuota) : | H47: n/a | I47: =I44 -> 4538.39 | J47: =J44 -> 3002.45 | K47: 2142.79 | L47: 1512.09 | M47: 1188.79
F48: Tarifas en US$ — Válidas desde 01 enero de 2022
F50: Este presupuesto solamente tiene carácter informativo y en ningún momento expresa compromiso legal para suministrarle cobertura de seguro. La emisión de una póliza de seguro Bupa está sujeta a todas las evaluaciones de riesgo por parte de Bupa y a la recepción de todos los pagos de prima requeridos.

Sheet Privilege
C10: Cotización de Seguro Médico Internacional - Bupa PRIVILEGE Care
H12: =+'INGRESO DE DATOS'!$D$14 -> NOMBRE COMPLETO
H14: =+'INGRESO DE DATOS'!$D$23 -> AGENTE
J16: =+'INGRESO DE DATOS'!$G$16 -> 1 | M16: =+'INGRESO DE DATOS'!$G$18 -> 18
F17: FECHA DE COTIZACION :
F18: =NOW() -> 2022-01-06T13:36:44.600 | J18: =+'INGRESO DE DATOS'!$J$16 -> 0 | M18: =+'INGRESO DE DATOS'!$J$18 -> 46
I20: FALSE | K20: COMPLICACIONES DE MATERNIDAD
J22: FALSE
F25: Deducibles | H25: PLAN 1 | I25: PLAN 2 | J25: PLAN 3 | K25: PLAN 4 | L25: PLAN 5 | M25: PLAN 6
F26: Dentro del pais de residencia | H26: n/a | I26: 1000 | J26: 2000 | K26: 5000 | L26: 10000 | M26: 20000
F27: Fuera del pais de residencia | H27: n/a | I27: 2000 | J27: 3000 | K27: 5000 | L27: 10000 | M27: 20000
F30: Tarifas Anuales
F31: Prima de Titular : | H31: n/a | I31: =VLOOKUP($M$16,Tablas!$A$140:$H$163,4,TRUE) -> 7203 | J31: =VLOOKUP($M$16,Tablas!$A$140:$H$163,5,TRUE) -> 4952 | K31: =VLOOKUP($M$16,Tablas!$A$140:$H$163,6,TRUE) -> 3510 | L31: =VLOOKUP($M$16,Tablas!$A$140:$H$163,7,TRUE) -> 2463 | M31: =VLOOKUP($M$16,Tablas!$A$140:$H$163,8,TRUE) -> 1876
F32: Prima de Cónyuge | H32: n/a | I32: =IF($J$16=1,0,(VLOOKUP($M$18,Tablas!$A$140:$H$163,4,TRUE))) -> 0 | J32: =IF($J$16=1,0,(VLOOKUP($M$18,Tablas!$A$140:$H$163,5,TRUE))) -> 0 | K32: =IF($J$16=1,0,(VLOOKUP($M$18,Tablas!$A$140:$H$163,6,TRUE))) -> 0 | L32: =IF($J$16=1,0,(VLOOKUP($M$18,Tablas!$A$140:$H$163,7,TRUE))) -> 0 | M32: =IF($J$16=1,0,(VLOOKUP($M$18,Tablas!$A$140:$H$163,8,TRUE))) -> 0
F33: Primas Hijos : | H33: n/a | I33: =IF($J$18=0,0,(VLOOKUP($J$18,Tablas!$A$164:$H$166,4,TRUE))) -> 0 | J33: =IF($J$18=0,0,(VLOOKUP($J$18,Tablas!$A$164:$H$166,5,TRUE))) -> 0 | K33: =IF($J$18=0,0,(VLOOKUP($J$18,Tablas!$A$164:$H$166,6,TRUE))) -> 0 | L33: =IF($J$18=0,0,(VLOOKUP($J$18,Tablas!$A$164:$H$166,7,TRUE))) -> 0 | M33: =IF($J$18=0,0,(VLOOKUP($J$18,Tablas!$A$164:$H$166,8,TRUE))) -> 0
F34: Prima Rider Complic. Maternidad | H34: n/a | I34: =+IF($I$20=FALSE,0,Tablas!D$167) -> 0 | J34: =+IF($I$20=FALSE,0,Tablas!E$167) -> 0 | K34: =+IF($I$20=FALSE,0,Tablas!F$167) -> 0 | L34: =+IF($I$20=FALSE,0,Tablas!G$167) -> 0 | M34: =+IF($I$20=FALSE,0,Tablas!H$167) -> 0
F35: TOTAL PRIMA NETA : | H35: n/a | I35: =SUM(I31:I34) -> 7203 | J35: =SUM(J31:J34) -> 4952 | K35: =SUM(K31:K34) -> 3510 | L35: =SUM(L31:L34) -> 2463 | M35: =SUM(M31:M34) -> 1876
F36: Costo Administrativo Anual : | H36: n/a | I36: 75 | J36: 75 | K36: 75 | L36: 75 | M36: 75
F37: GRAN TOTAL : | H37: n/a | I37: =SUM(I35:I36) -> 7278 | J37: =SUM(J35:J36) -> 5027 | K37: =SUM(K35:K36) -> 3585 | L37: =SUM(L35:L36) -> 2538 | M37: =SUM(M35:M36) -> 1951
F39: Tarifas Semestrales
F40: Prima de Titular : | H40: n/a | I40: =VLOOKUP($M$16,Tablas!$A$173:$H$196,4,TRUE) -> 3817.59 | J40: =VLOOKUP($M$16,Tablas!$A$173:$H$196,5,TRUE) -> 2624.56 | K40: =VLOOKUP($M$16,Tablas!$A$173:$H$196,6,TRUE) -> 1860.3 | L40: =VLOOKUP($M$16,Tablas!$A$173:$H$196,7,TRUE) -> 1305.39 | M40: =VLOOKUP($M$16,Tablas!$A$173:$H$196,8,TRUE) -> 994.28
F41: Prima de Cónyuge | H41: n/a | I41: =IF($J$16=1,0,(VLOOKUP($M$18,Tablas!$A$173:$H$196,4,TRUE))) -> 0 | J41: =IF($J$16=1,0,(VLOOKUP($M$18,Tablas!$A$173:$H$196,5,TRUE))) -> 0 | K41: =IF($J$16=1,0,(VLOOKUP($M$18,Tablas!$A$173:$H$196,6,TRUE))) -> 0 | L41: =IF($J$16=1,0,(VLOOKUP($M$18,Tablas!$A$173:$H$196,7,TRUE))) -> 0 | M41: =IF($J$16=1,0,(VLOOKUP($M$18,Tablas!$A$173:$H$196,8,TRUE))) -> 0
F42: Primas Hijos : | H42: n/a | I42: =IF($J$18=0,0,(VLOOKUP($J$18,Tablas!$A$197:$H$199,4,TRUE))) -> 0 | J42: =IF($J$18=0,0,(VLOOKUP($J$18,Tablas!$A$197:$H$199,5,TRUE))) -> 0 | K42: =IF($J$18=0,0,(VLOOKUP($J$18,Tablas!$A$197:$H$199,6,TRUE))) -> 0 | L42: =IF($J$18=0,0,(VLOOKUP($J$18,Tablas!$A$197:$H$199,7,TRUE))) -> 0 | M42: =IF($J$18=0,0,(VLOOKUP($J$18,Tablas!$A$197:$H$199,8,TRUE))) -> 0
F43: Prima Rider Complic. Maternidad | H43: n/a | I43: =+IF($I$20=FALSE,0,Tablas!D$200) -> 0 | J43: =+IF($I$20=FALSE,0,Tablas!E$200) -> 0 | K43: =+IF($I$20=FALSE,0,Tablas!F$200) -> 0 | L43: =+IF($I$20=FALSE,0,Tablas!G$200) -> 0 | M43: =+IF($I$20=FALSE,0,Tablas!H$200) -> 0
F44: TOTAL PRIMA NETA : | H44: n/a | I44: =SUM(I40:I43) -> 3817.59 | J44: =SUM(J40:J43) -> 2624.56 | K44: =SUM(K40:K43) -> 1860.3 | L44: =SUM(L40:L43) -> 1305.39 | M44: =SUM(M40:M43) -> 994.28
F45: Costo Administrativo Anual : | H45: n/a | I45: 75 | J45: 75 | K45: 75 | L45: 75 | M45: 75
F46: GRAN TOTAL (1ra Cuota) : | H46: n/a | I46: =SUM(I44:I45) -> 3892.59 | J46: =SUM(J44:J45) -> 2699.56 | K46: =SUM(K44:K45) -> 1935.3 | L46: =SUM(L44:L45) -> 1380.39 | M46: =SUM(M44:M45) -> 1069.28
F47: GRAN TOTAL (2da Cuota) : | H47: n/a | I47: =I44 -> 3817.59 | J47: =J44 -> 2624.56 | K47: 1860.3 | L47: 1305.39 | M47: 994.28
F48: Tarifas en US$ — Válidas desde 01 enero de 2022
F50: Este presupuesto solamente tiene carácter informativo y en ningún momento expresa compromiso legal para suministrarle cobertura de seguro. La emisión de una póliza de seguro Bupa está sujeta a todas las evaluaciones de riesgo por parte de Bupa y a la recepción de todos los pagos de prima requeridos.

Sheet Advantage (Mundial)
C10: Cotización de Seguro Médico Internacional - Bupa ADVANTAGE Care
H12: =+'INGRESO DE DATOS'!$D$14 -> NOMBRE COMPLETO
H14: =+'INGRESO DE DATOS'!$D$23 -> AGENTE
J16: =+'INGRESO DE DATOS'!$G$16 -> 1 | M16: =+'INGRESO DE DATOS'!$G$18 -> 18
F17: FECHA DE COTIZACION :
F18: =NOW() -> 2022-01-06T13:36:44.600 | J18: =+'INGRESO DE DATOS'!$J$16 -> 0 | M18: =+'INGRESO DE DATOS'!$J$18 -> 46
I20: FALSE | K20: COMPLICACIONES DE MATERNIDAD
I22: FALSE | K22: TRASPLANTE DE ORGANOS
F25: Deducibles | H25: PLAN 1 | I25: PLAN 2 | J25: PLAN 3 | K25: PLAN 4 | L25: PLAN 5 | M25: PLAN 6
F26: Dentro del pais de residencia | H26: n/a | I26: 1000 | J26: 2000 | K26: 5000 | L26: 10000 | M26: 20000
F27: Fuera del pais de residencia | H27: n/a | I27: 2000 | J27: 3000 | K27: 5000 | L27: 10000 | M27: 20000
F30: Tarifas Anuales
F31: Prima de Titular : | H31: n/a | I31: =VLOOKUP($M$16,Tablas!$A$274:$H$297,4,TRUE) -> 4749 | J31: =VLOOKUP($M$16,Tablas!$A$274:$H$297,5,TRUE) -> 3570 | K31: =VLOOKUP($M$16,Tablas!$A$274:$H$297,6,TRUE) -> 2708 | L31: =VLOOKUP($M$16,Tablas!$A$274:$H$297,7,TRUE) -> 2061 | M31: =VLOOKUP($M$16,Tablas!$A$274:$H$297,8,TRUE) -> 1634
F32: Prima de Cónyuge | H32: n/a | I32: =IF($J$16=1,0,(VLOOKUP($M$18,Tablas!$A$274:$H$297,4,TRUE))) -> 0 | J32: =IF($J$16=1,0,(VLOOKUP($M$18,Tablas!$A$274:$H$297,5,TRUE))) -> 0 | K32: =IF($J$16=1,0,(VLOOKUP($M$18,Tablas!$A$274:$H$297,6,TRUE))) -> 0 | L32: =IF($J$16=1,0,(VLOOKUP($M$18,Tablas!$A$274:$H$297,7,TRUE))) -> 0 | M32: =IF($J$16=1,0,(VLOOKUP($M$18,Tablas!$A$274:$H$297,8,TRUE))) -> 0
F33: Primas Hijos : | H33: n/a | I33: =IF($J$18=0,0,(VLOOKUP($J$18,Tablas!$A$298:$H$300,4,TRUE))) -> 0 | J33: =IF($J$18=0,0,(VLOOKUP($J$18,Tablas!$A$298:$H$300,5,TRUE))) -> 0 | K33: =IF($J$18=0,0,(VLOOKUP($J$18,Tablas!$A$298:$H$300,6,TRUE))) -> 0 | L33: =IF($J$18=0,0,(VLOOKUP($J$18,Tablas!$A$298:$H$300,7,TRUE))) -> 0 | M33: =IF($J$18=0,0,(VLOOKUP($J$18,Tablas!$A$298:$H$300,8,TRUE))) -> 0
F34: Prima Rider Complic. Maternidad | H34: n/a | I34: =+IF($I$20=FALSE,0,Tablas!D$301) -> 0 | J34: =+IF($I$20=FALSE,0,Tablas!E$301) -> 0 | K34: =+IF($I$20=FALSE,0,Tablas!F$301) -> 0 | L34: =+IF($I$20=FALSE,0,Tablas!G$301) -> 0 | M34: =+IF($I$20=FALSE,0,Tablas!H$301) -> 0
F35: Prima Rider Trasplante Organos | H35: n/a | I35: =IF($I$22=FALSE,0,Tablas!D$302) -> 0 | J35: =IF($I$22=FALSE,0,Tablas!E$302) -> 0 | K35: =IF($I$22=FALSE,0,Tablas!F$302) -> 0 | L35: =IF($I$22=FALSE,0,Tablas!G$302) -> 0 | M35: =IF($I$22=FALSE,0,Tablas!H$302) -> 0
F36: TOTAL PRIMA NETA : | H36: n/a | I36: =SUM(I31:I35) -> 4749 | J36: 3570 | K36: 2708 | L36: 2061 | M36: 1634
F37: Costo Administrativo Anual : | H37: n/a | I37: 75 | J37: 75 | K37: 75 | L37: 75 | M37: 75
F38: GRAN TOTAL : | H38: n/a | I38: =SUM(I36:I37) -> 4824 | J38: =SUM(J36:J37) -> 3645 | K38: =SUM(K36:K37) -> 2783 | L38: =SUM(L36:L37) -> 2136 | M38: =SUM(M36:M37) -> 1709
F40: Tarifas Semestrales
F41: Prima de Titular : | H41: n/a | I41: =VLOOKUP($M$16,Tablas!$A$307:$H$330,4,TRUE) -> 2516.97 | J41: =VLOOKUP($M$16,Tablas!$A$307:$H$330,5,TRUE) -> 1892.1 | K41: =VLOOKUP($M$16,Tablas!$A$307:$H$330,6,TRUE) -> 1435.24 | L41: =VLOOKUP($M$16,Tablas!$A$307:$H$330,7,TRUE) -> 1092.33 | M41: =VLOOKUP($M$16,Tablas!$A$307:$H$330,8,TRUE) -> 866.02
F42: Prima de Cónyuge | H42: n/a | I42: =IF($J$16=1,0,(VLOOKUP($M$18,Tablas!$A$307:$H$330,4,TRUE))) -> 0 | J42: =IF($J$16=1,0,(VLOOKUP($M$18,Tablas!$A$307:$H$330,5,TRUE))) -> 0 | K42: =IF($J$16=1,0,(VLOOKUP($M$18,Tablas!$A$307:$H$330,6,TRUE))) -> 0 | L42: =IF($J$16=1,0,(VLOOKUP($M$18,Tablas!$A$307:$H$330,7,TRUE))) -> 0 | M42: =IF($J$16=1,0,(VLOOKUP($M$18,Tablas!$A$307:$H$330,8,TRUE))) -> 0
F43: Primas Hijos : | H43: n/a | I43: =IF($J$18=0,0,(VLOOKUP($J$18,Tablas!$A$331:$H$333,4,TRUE))) -> 0 | J43: =IF($J$18=0,0,(VLOOKUP($J$18,Tablas!$A$331:$H$333,5,TRUE))) -> 0 | K43: =IF($J$18=0,0,(VLOOKUP($J$18,Tablas!$A$331:$H$333,6,TRUE))) -> 0 | L43: =IF($J$18=0,0,(VLOOKUP($J$18,Tablas!$A$331:$H$333,7,TRUE))) -> 0 | M43: =IF($J$18=0,0,(VLOOKUP($J$18,Tablas!$A$331:$H$333,8,TRUE))) -> 0
F44: Prima Rider Complic. Maternidad | H44: n/a | I44: =+IF($I$20=FALSE,0,Tablas!D$334) -> 0 | J44: =+IF($I$20=FALSE,0,Tablas!E$334) -> 0 | K44: =+IF($I$20=FALSE,0,Tablas!F$334) -> 0 | L44: =+IF($I$20=FALSE,0,Tablas!G$334) -> 0 | M44: =+IF($I$20=FALSE,0,Tablas!H$334) -> 0
F45: Prima Rider Trasplante Organos | H45: n/a | I45: =IF($I$22=FALSE,0,Tablas!D$335) -> 0 | J45: =IF($I$22=FALSE,0,Tablas!E$335) -> 0 | K45: =IF($I$22=FALSE,0,Tablas!F$335) -> 0 | L45: =IF($I$22=FALSE,0,Tablas!G$335) -> 0 | M45: =IF($I$22=FALSE,0,Tablas!H$335) -> 0
F46: TOTAL PRIMA NETA : | H46: n/a | I46: =SUM(I41:I45) -> 2516.97 | J46: 1892.1 | K46: 1435.24 | L46: 1092.33 | M46: 866.02
F47: Costo Administrativo Anual : | H47: n/a | I47: 75 | J47: 75 | K47: 75 | L47: 75 | M47: 75
F48: GRAN TOTAL (1ra Cuota) : | H48: n/a | I48: =SUM(I46:I47) -> 2591.97 | J48: =SUM(J46:J47) -> 1967.1 | K48: =SUM(K46:K47) -> 1510.24 | L48: =SUM(L46:L47) -> 1167.33 | M48: =SUM(M46:M47) -> 941.02
F49: GRAN TOTAL (2da Cuota) : | H49: n/a | I49: =I46 -> 2516.97 | J49: =J46 -> 1892.1 | K49: 1435.24 | L49: 1092.33 | M49: 866.02
F50: Tarifas en US$ — Válidas desde 01 enero de 2022
F52: Este presupuesto solamente tiene carácter informativo y en ningún momento expresa compromiso legal para suministrarle cobertura de seguro. La emisión de una póliza de seguro Bupa está sujeta a todas las evaluaciones de riesgo por parte de Bupa y a la recepción de todos los pagos de prima requeridos.

Sheet Advantage (LA) (hidden)
A10: Cotización de Seguro Médico Internacional - Bupa ADVANTAGE Care (cobertura solo Latinoamérica)
A12: Bupa Advantage Care (cobertura solo en Latinoamérica) | H12: =+'INGRESO DE DATOS'!$D$14 -> NOMBRE COMPLETO
A13: Cobertura Máxima anual | C13: US $ 3,500,000
A14: Cobertura Geografica | C14: Limitada a Latinoamérica excluyendo México | H14: =+'INGRESO DE DATOS'!$D$23 -> AGENTE
A15: Condiciones médicas cubiertas | C15: Todas las condiciones médicas
A16: Redes de proveedores | C16: Red de Proveedores "Bupa Advantage" | J16: =+'INGRESO DE DATOS'!$G$16 -> 1 | M16: =+'INGRESO DE DATOS'!$G$18 -> 18
A17: Opciones fuera de la Red | C17: NO, solo en casos de emergencia | F17: FECHA DE COTIZACION :
A18: Requiere preautorización | C18: SI, 30% de penalización por omitir prenotificación | F18: =NOW() -> 2022-01-06T13:36:44.600 | J18: =+'INGRESO DE DATOS'!$J$16 -> 0 | M18: =+'INGRESO DE DATOS'!$J$18 -> 46
A20: Número máximo de días de hospitalización | C20: Ilimitado | I20: TRUE | K20: COMPLICACIONES DE MATERNIDAD
A21: Habitación y alimentación | C21: 100% dentro de Red Bupa
C22: "UCR" para L.A. en emergencias fuera de Red Bupa | I22: TRUE | K22: TRASPLANTE DE ORGANOS
A23: Cuidados Intensivos | C23: 100% dentro de Red Bupa
C24: "UCR" para L.A. en emergencias fuera de Red Bupa
A25: Cobertura de Maternidad | C25: $5,000 (Excepto planes 4,5, y 6) | F25: Deducibles | H25: PLAN 1 | I25: PLAN 2 | J25: PLAN 3 | K25: PLAN 4 | L25: PLAN 5 | M25: PLAN 6
A26: Cobertura Provisional de Recién Nacido | C26: $30,000 por los primeros 90 días | F26: Dentro del pais de residencia | H26: n/a | I26: 1000 | J26: 2000 | K26: 5000 | L26: 10000 | M26: 20000
A27: Cuidado del Recién Nacido saludable | C27: Ya incluída dentro del beneficio de Maternidad | F27: Fuera del pais de residencia | H27: n/a | I27: 2000 | J27: 3000 | K27: 5000 | L27: 10000 | M27: 20000
A28: Cobertura de Complicaciones de Maternidad | C28: Disponible a través de cobertura opcional adicional
A29: Trasplante de Organos | C29: $1,000,000 de por vida, por diagnóstico
A30: Condiciones congénitas y hereditarias | C30: <18 años $300,000 de por vida; >=18 al 100% | F30: Tarifas Anuales
A31: Coberturas opcionales (Riders) | C31: Complicaciones de Maternidad por $500,000 | F31: Prima de Titular : | H31: n/a | I31: =VLOOKUP($M$16,Tablas!$A$341:$H$364,4,TRUE) -> 0 | J31: =VLOOKUP($M$16,Tablas!$A$341:$H$364,5,TRUE) -> 0 | K31: =VLOOKUP($M$16,Tablas!$A$341:$H$364,6,TRUE) -> 0 | L31: =VLOOKUP($M$16,Tablas!$A$341:$H$364,7,TRUE) -> 0 | M31: =VLOOKUP($M$16,Tablas!$A$341:$H$364,8,TRUE) -> 0
C32: Trasplante de órganos por $ 300,000 adicionales | F32: Prima de Cónyuge | H32: n/a | I32: =IF($J$16=1,0,(VLOOKUP($M$18,Tablas!$A$341:$H$364,4,TRUE))) -> 0 | J32: =IF($J$16=1,0,(VLOOKUP($M$18,Tablas!$A$341:$H$364,5,TRUE))) -> 0 | K32: =IF($J$16=1,0,(VLOOKUP($M$18,Tablas!$A$341:$H$364,6,TRUE))) -> 0 | L32: =IF($J$16=1,0,(VLOOKUP($M$18,Tablas!$A$341:$H$364,7,TRUE))) -> 0 | M32: =IF($J$16=1,0,(VLOOKUP($M$18,Tablas!$A$341:$H$364,8,TRUE))) -> 0
A33: Acompañamiento de menores hospitalizados | C33: $300 por día | F33: Primas Hijos : | H33: n/a | I33: =IF($J$18=0,0,(VLOOKUP($J$18,Tablas!$A$365:$H$367,4,TRUE))) -> 0 | J33: =IF($J$18=0,0,(VLOOKUP($J$18,Tablas!$A$365:$H$367,5,TRUE))) -> 0 | K33: =IF($J$18=0,0,(VLOOKUP($J$18,Tablas!$A$365:$H$367,6,TRUE))) -> 0 | L33: =IF($J$18=0,0,(VLOOKUP($J$18,Tablas!$A$365:$H$367,7,TRUE))) -> 0 | M33: =IF($J$18=0,0,(VLOOKUP($J$18,Tablas!$A$365:$H$367,8,TRUE))) -> 0
A34: Ambulancia aérea | C34: $100,000 por año y ticket aéreo de retorno | F34: Prima Rider Complic. Maternidad | H34: n/a | I34: =+IF($I$20=FALSE,0,Tablas!D$368) -> 0 | J34: =+IF($I$20=FALSE,0,Tablas!E$368) -> 0 | K34: =+IF($I$20=FALSE,0,Tablas!F$368) -> 0 | L34: =+IF($I$20=FALSE,0,Tablas!G$368) -> 0 | M34: =+IF($I$20=FALSE,0,Tablas!H$368) -> 0
A35: Repatriación restos mortales | C35: 1 | F35: Prima Rider Trasplante Organos | H35: n/a | I35: =IF($I$22=FALSE,0,Tablas!D$369) -> 0 | J35: =IF($I$22=FALSE,0,Tablas!E$369) -> 0 | K35: =IF($I$22=FALSE,0,Tablas!F$369) -> 0 | L35: =IF($I$22=FALSE,0,Tablas!G$369) -> 0 | M35: =IF($I$22=FALSE,0,Tablas!H$369) -> 0
A36: Medicamentos por receta | C36: $6,000 por Asegurado, por año póliza | F36: TOTAL PRIMA NETA : | H36: n/a | I36: =SUM(I31:I35) -> 0 | J36: 0 | K36: 0 | L36: 0 | M36: 0
A37: Almacenamiento de sangre de cordon umbilical | C37: $500 (Excepto planes 4,5, y 6) | F37: Costo Administrativo Anual : | H37: n/a | I37: 75 | J37: 75 | K37: 75 | L37: 75 | M37: 75
F38: GRAN TOTAL : | H38: n/a | I38: =SUM(I36:I37) -> 75 | J38: =SUM(J36:J37) -> 75 | K38: =SUM(K36:K37) -> 75 | L38: =SUM(L36:L37) -> 75 | M38: =SUM(M36:M37) -> 75
A39: Atención médica en el hogar | C39: 100% de usual/acostumbrado y razonable
A40: Rehabilitación | C40: 100% de usual/acostumbrado y razonable | F40: Tarifas Semestrales
A41: Residencia y cuidados paliativos | C41: 100% de usual/acostumbrado y razonable | F41: Prima de Titular : | H41: n/a | I41: =VLOOKUP($M$16,Tablas!$A$374:$H$397,4,TRUE) -> 0 | J41: =VLOOKUP($M$16,Tablas!$A$374:$H$397,5,TRUE) -> 0 | K41: =VLOOKUP($M$16,Tablas!$A$374:$H$397,6,TRUE) -> 0 | L41: =VLOOKUP($M$16,Tablas!$A$374:$H$397,7,TRUE) -> 0 | M41: =VLOOKUP($M$16,Tablas!$A$374:$H$397,8,TRUE) -> 0
A42: Cobertura de actividades peligrosas | C42: 1 | F42: Prima de Cónyuge | H42: n/a | I42: =IF($J$16=1,0,(VLOOKUP($M$18,Tablas!$A$374:$H$397,4,TRUE))) -> 0 | J42: =IF($J$16=1,0,(VLOOKUP($M$18,Tablas!$A$374:$H$397,5,TRUE))) -> 0 | K42: =IF($J$16=1,0,(VLOOKUP($M$18,Tablas!$A$374:$H$397,6,TRUE))) -> 0 | L42: =IF($J$16=1,0,(VLOOKUP($M$18,Tablas!$A$374:$H$397,7,TRUE))) -> 0 | M42: =IF($J$16=1,0,(VLOOKUP($M$18,Tablas!$A$374:$H$397,8,TRUE))) -> 0
A43: Chequeos generales de rutina | C43: Hasta US$150 por año póliza.Sin deducible | F43: Primas Hijos : | H43: n/a | I43: =IF($J$18=0,0,(VLOOKUP($J$18,Tablas!$A$398:$H$400,4,TRUE))) -> 0 | J43: =IF($J$18=0,0,(VLOOKUP($J$18,Tablas!$A$398:$H$400,5,TRUE))) -> 0 | K43: =IF($J$18=0,0,(VLOOKUP($J$18,Tablas!$A$398:$H$400,6,TRUE))) -> 0 | L43: =IF($J$18=0,0,(VLOOKUP($J$18,Tablas!$A$398:$H$400,7,TRUE))) -> 0 | M43: =IF($J$18=0,0,(VLOOKUP($J$18,Tablas!$A$398:$H$400,8,TRUE))) -> 0
A44: Cobertura de VIH, SIDA, CAS | C44: Solo como efecto de transfusión de sangre | F44: Prima Rider Complic. Maternidad | H44: n/a | I44: =+IF($I$20=FALSE,0,Tablas!D$401) -> 0 | J44: =+IF($I$20=FALSE,0,Tablas!E$401) -> 0 | K44: =+IF($I$20=FALSE,0,Tablas!F$401) -> 0 | L44: =+IF($I$20=FALSE,0,Tablas!G$401) -> 0 | M44: =+IF($I$20=FALSE,0,Tablas!H$401) -> 0
A45: Cobertura de brazos y piernas artificiales | C45: $30,000 por año y hasta $120,000 de por vida | F45: Prima Rider Trasplante Organos | H45: n/a | I45: =IF($I$22=FALSE,0,Tablas!D$402) -> 0 | J45: =IF($I$22=FALSE,0,Tablas!E$402) -> 0 | K45: =IF($I$22=FALSE,0,Tablas!F$402) -> 0 | L45: =IF($I$22=FALSE,0,Tablas!G$402) -> 0 | M45: =IF($I$22=FALSE,0,Tablas!H$402) -> 0
A46: Cobertura extendida para dependientes en caso de muerte de asegurado principal | C46: 2 años sin costo | F46: TOTAL PRIMA NETA : | H46: n/a | I46: =SUM(I41:I45) -> 0 | J46: 0 | K46: 0 | L46: 0 | M46: 0
F47: Costo Administrativo Anual : | H47: n/a | I47: 75 | J47: 75 | K47: 75 | L47: 75 | M47: 75
F48: GRAN TOTAL (1ra Cuota) : | H48: n/a | I48: =SUM(I46:I47) -> 75 | J48: =SUM(J46:J47) -> 75 | K48: =SUM(K46:K47) -> 75 | L48: =SUM(L46:L47) -> 75 | M48: =SUM(M46:M47) -> 75
F49: GRAN TOTAL (2da Cuota) : | H49: n/a | I49: =I46 -> 0 | J49: =J46 -> 0 | K49: 0 | L49: 0 | M49: 0
F50: Tarifas en US $ - Válidas desde 01 Ene 2013

Sheet Secure
C10: Cotización de Seguro Médico Internacional - Bupa SECURE Care
H12: =+'INGRESO DE DATOS'!$D$14 -> NOMBRE COMPLETO
H14: =+'INGRESO DE DATOS'!$D$23 -> AGENTE
J16: =+'INGRESO DE DATOS'!$G$16 -> 1 | M16: =+'INGRESO DE DATOS'!$G$18 -> 18
F17: FECHA DE COTIZACION :
F18: =NOW() -> 2022-01-06T13:36:44.600 | J18: =+'INGRESO DE DATOS'!$J$16 -> 0 | M18: =+'INGRESO DE DATOS'!$J$18 -> 46
I20: FALSE | K20: COMPLICACIONES DE MATERNIDAD
I22: FALSE | K22: TRASPLANTE DE ORGANOS
F25: Deducibles | H25: PLAN 1 | I25: PLAN 2 | J25: PLAN 3 | K25: PLAN 4 | L25: PLAN 5 | M25: PLAN 6
F26: Dentro del pais de residencia | H26: n/a | I26: 1000 | J26: 2000 | K26: 5000 | L26: 10000 | M26: 20000
F27: Fuera del pais de residencia | H27: n/a | I27: 2000 | J27: 3000 | K27: 5000 | L27: 10000 | M27: 20000
F30: Tarifas Anuales
F31: Prima de Titular : | H31: n/a | I31: =VLOOKUP($M$16,Tablas!$A$408:$H$431,4,TRUE) -> 3372 | J31: =VLOOKUP($M$16,Tablas!$A$408:$H$431,5,TRUE) -> 2645 | K31: =VLOOKUP($M$16,Tablas!$A$408:$H$431,6,TRUE) -> 2016 | L31: =VLOOKUP($M$16,Tablas!$A$408:$H$431,7,TRUE) -> 1727 | M31: =VLOOKUP($M$16,Tablas!$A$408:$H$431,8,TRUE) -> 1317
F32: Prima de Cónyuge | H32: n/a | I32: =IF($J$16=1,0,(VLOOKUP($M$18,Tablas!$A$408:$H$431,4,TRUE))) -> 0 | J32: =IF($J$16=1,0,(VLOOKUP($M$18,Tablas!$A$408:$H$431,5,TRUE))) -> 0 | K32: =IF($J$16=1,0,(VLOOKUP($M$18,Tablas!$A$408:$H$431,6,TRUE))) -> 0 | L32: =IF($J$16=1,0,(VLOOKUP($M$18,Tablas!$A$408:$H$431,7,TRUE))) -> 0 | M32: =IF($J$16=1,0,(VLOOKUP($M$18,Tablas!$A$408:$H$431,8,TRUE))) -> 0
F33: Primas Hijos : | H33: n/a | I33: =IF($J$18=0,0,(VLOOKUP($J$18,Tablas!$A$432:$H$434,4,TRUE))) -> 0 | J33: =IF($J$18=0,0,(VLOOKUP($J$18,Tablas!$A$432:$H$434,5,TRUE))) -> 0 | K33: =IF($J$18=0,0,(VLOOKUP($J$18,Tablas!$A$432:$H$434,6,TRUE))) -> 0 | L33: =IF($J$18=0,0,(VLOOKUP($J$18,Tablas!$A$432:$H$434,7,TRUE))) -> 0 | M33: =IF($J$18=0,0,(VLOOKUP($J$18,Tablas!$A$432:$H$434,8,TRUE))) -> 0
F34: Prima Rider Complic. Maternidad | H34: n/a | I34: =+IF($I$20=FALSE,0,Tablas!D$435) -> 0 | J34: =+IF($I$20=FALSE,0,Tablas!E$435) -> 0 | K34: =+IF($I$20=FALSE,0,Tablas!F$435) -> 0 | L34: =+IF($I$20=FALSE,0,Tablas!G$435) -> 0 | M34: =+IF($I$20=FALSE,0,Tablas!H$435) -> 0
F35: Prima Rider Trasplante Organos | H35: n/a | I35: =IF($I$22=FALSE,0,Tablas!D$436) -> 0 | J35: =IF($I$22=FALSE,0,Tablas!E$436) -> 0 | K35: =IF($I$22=FALSE,0,Tablas!F$436) -> 0 | L35: =IF($I$22=FALSE,0,Tablas!G$436) -> 0 | M35: =IF($I$22=FALSE,0,Tablas!H$436) -> 0
F36: TOTAL PRIMA NETA : | H36: n/a | I36: =SUM(I31:I35) -> 3372 | J36: 2645 | K36: 2016 | L36: 1727 | M36: 1317
F37: Costo Administrativo Anual : | H37: n/a | I37: 75 | J37: 75 | K37: 75 | L37: 75 | M37: 75
F38: GRAN TOTAL : | H38: n/a | I38: =SUM(I36:I37) -> 3447 | J38: =SUM(J36:J37) -> 2720 | K38: =SUM(K36:K37) -> 2091 | L38: =SUM(L36:L37) -> 1802 | M38: =SUM(M36:M37) -> 1392
F40: Tarifas Semestrales
F41: Prima de Titular : | H41: n/a | I41: =VLOOKUP($M$16,Tablas!$A$441:$H$464,4,TRUE) -> 1787.16 | J41: =VLOOKUP($M$16,Tablas!$A$441:$H$464,5,TRUE) -> 1401.85 | K41: =VLOOKUP($M$16,Tablas!$A$441:$H$464,6,TRUE) -> 1068.48 | L41: =VLOOKUP($M$16,Tablas!$A$441:$H$464,7,TRUE) -> 915.31 | M41: =VLOOKUP($M$16,Tablas!$A$441:$H$464,8,TRUE) -> 698.01
F42: Prima de Cónyuge | H42: n/a | I42: =IF($J$16=1,0,(VLOOKUP($M$18,Tablas!$A$441:$H$464,4,TRUE))) -> 0 | J42: =IF($J$16=1,0,(VLOOKUP($M$18,Tablas!$A$441:$H$464,5,TRUE))) -> 0 | K42: =IF($J$16=1,0,(VLOOKUP($M$18,Tablas!$A$441:$H$464,6,TRUE))) -> 0 | L42: =IF($J$16=1,0,(VLOOKUP($M$18,Tablas!$A$441:$H$464,7,TRUE))) -> 0 | M42: =IF($J$16=1,0,(VLOOKUP($M$18,Tablas!$A$441:$H$464,8,TRUE))) -> 0
F43: Primas Hijos : | H43: n/a | I43: =IF($J$18=0,0,(VLOOKUP($J$18,Tablas!$A$465:$H$467,4,TRUE))) -> 0 | J43: =IF($J$18=0,0,(VLOOKUP($J$18,Tablas!$A$465:$H$467,5,TRUE))) -> 0 | K43: =IF($J$18=0,0,(VLOOKUP($J$18,Tablas!$A$465:$H$467,6,TRUE))) -> 0 | L43: =IF($J$18=0,0,(VLOOKUP($J$18,Tablas!$A$465:$H$467,7,TRUE))) -> 0 | M43: =IF($J$18=0,0,(VLOOKUP($J$18,Tablas!$A$465:$H$467,8,TRUE))) -> 0
F44: Prima Rider Complic. Maternidad | H44: n/a | I44: =+IF($I$20=FALSE,0,Tablas!D$468) -> 0 | J44: =+IF($I$20=FALSE,0,Tablas!E$468) -> 0 | K44: =+IF($I$20=FALSE,0,Tablas!F$468) -> 0 | L44: =+IF($I$20=FALSE,0,Tablas!G$468) -> 0 | M44: =+IF($I$20=FALSE,0,Tablas!H$468) -> 0
F45: Prima Rider Trasplante Organos | H45: n/a | I45: =IF($I$22=FALSE,0,Tablas!D$469) -> 0 | J45: =IF($I$22=FALSE,0,Tablas!E$469) -> 0 | K45: =IF($I$22=FALSE,0,Tablas!F$469) -> 0 | L45: =IF($I$22=FALSE,0,Tablas!G$469) -> 0 | M45: =IF($I$22=FALSE,0,Tablas!H$469) -> 0
F46: TOTAL PRIMA NETA : | H46: n/a | I46: =SUM(I41:I45) -> 1787.16 | J46: 1401.85 | K46: 1068.48 | L46: 915.31 | M46: 698.01
F47: Costo Administrativo Anual : | H47: n/a | I47: 75 | J47: 75 | K47: 75 | L47: 75 | M47: 75
F48: GRAN TOTAL (1ra Cuota) : | H48: n/a | I48: =SUM(I46:I47) -> 1862.16 | J48: =SUM(J46:J47) -> 1476.85 | K48: =SUM(K46:K47) -> 1143.48 | L48: =SUM(L46:L47) -> 990.31 | M48: =SUM(M46:M47) -> 773.01
F49: GRAN TOTAL (2da Cuota) : | H49: n/a | I49: =I46 -> 1787.16 | J49: =J46 -> 1401.85 | K49: 1068.48 | L49: 915.31 | M49: 698.01
F50: Tarifas en US$ — Válidas desde 01 enero de 2022
F52: Este presupuesto solamente tiene carácter informativo y en ningún momento expresa compromiso legal para suministrarle cobertura de seguro. La emisión de una póliza de seguro Bupa está sujeta a todas las evaluaciones de riesgo por parte de Bupa y a la recepción de todos los pagos de prima requeridos.

Sheet Essential
C10: Cotización de Seguro Médico Internacional - Bupa ESSENTIAL Care
H12: =+'INGRESO DE DATOS'!$D$14 -> NOMBRE COMPLETO
H14: =+'INGRESO DE DATOS'!$D$23 -> AGENTE
J16: =+'INGRESO DE DATOS'!$G$16 -> 1 | M16: =+'INGRESO DE DATOS'!$G$18 -> 18
F17: FECHA DE COTIZACION :
F18: =NOW() -> 2022-01-06T13:36:44.600 | J18: =+'INGRESO DE DATOS'!$J$16 -> 0 | M18: =+'INGRESO DE DATOS'!$J$18 -> 46
I20: FALSE | K20: COMPLICACIONES DE MATERNIDAD
I22: TRUE | K22: TRASPLANTE DE ORGANOS
F25: Deducibles | H25: PLAN 1 | I25: PLAN 2 | J25: PLAN 3 | K25: PLAN 4 | L25: PLAN 5 | M25: PLAN 6
F26: Dentro del pais de residencia | H26: n/a | I26: 1000 | J26: 2000 | K26: 5000 | L26: 10000 | M26: 20000
F27: Fuera del pais de residencia | H27: n/a | I27: 2000 | J27: 3000 | K27: 5000 | L27: 10000 | M27: 20000
F30: Tarifas Anuales
F31: Prima de Titular : | H31: n/a | I31: =VLOOKUP($M$16,Tablas!$A$475:$H$498,4,TRUE) -> 2360 | J31: =VLOOKUP($M$16,Tablas!$A$475:$H$498,5,TRUE) -> 1848 | K31: =VLOOKUP($M$16,Tablas!$A$475:$H$498,6,TRUE) -> 1410 | L31: =VLOOKUP($M$16,Tablas!$A$475:$H$498,7,TRUE) -> 1209 | M31: =VLOOKUP($M$16,Tablas!$A$475:$H$498,8,TRUE) -> 916
F32: Prima de Cónyuge | H32: n/a | I32: =IF($J$16=1,0,(VLOOKUP($M$18,Tablas!$A$475:$H$498,4,TRUE))) -> 0 | J32: =IF($J$16=1,0,(VLOOKUP($M$18,Tablas!$A$475:$H$498,5,TRUE))) -> 0 | K32: =IF($J$16=1,0,(VLOOKUP($M$18,Tablas!$A$475:$H$498,6,TRUE))) -> 0 | L32: =IF($J$16=1,0,(VLOOKUP($M$18,Tablas!$A$475:$H$498,7,TRUE))) -> 0 | M32: =IF($J$16=1,0,(VLOOKUP($M$18,Tablas!$A$475:$H$498,8,TRUE))) -> 0
F33: Primas Hijos : | H33: n/a | I33: =IF($J$18=0,0,(VLOOKUP($J$18,Tablas!$A$499:$H$501,4,TRUE))) -> 0 | J33: =IF($J$18=0,0,(VLOOKUP($J$18,Tablas!$A$499:$H$501,5,TRUE))) -> 0 | K33: =IF($J$18=0,0,(VLOOKUP($J$18,Tablas!$A$499:$H$501,6,TRUE))) -> 0 | L33: =IF($J$18=0,0,(VLOOKUP($J$18,Tablas!$A$499:$H$501,7,TRUE))) -> 0 | M33: =IF($J$18=0,0,(VLOOKUP($J$18,Tablas!$A$499:$H$501,8,TRUE))) -> 0
F34: Prima Rider Complic. Maternidad | H34: n/a | I34: =+IF($I$20=FALSE,0,Tablas!D$502) -> 0 | J34: =+IF($I$20=FALSE,0,Tablas!E$502) -> 0 | K34: =+IF($I$20=FALSE,0,Tablas!F$502) -> 0 | L34: =+IF($I$20=FALSE,0,Tablas!G$502) -> 0 | M34: =+IF($I$20=FALSE,0,Tablas!H$502) -> 0
F35: Prima Rider Trasplante Organos | H35: n/a | I35: =IF($I$22=FALSE,0,Tablas!D$503) -> 300 | J35: =IF($I$22=FALSE,0,Tablas!E$503) -> 300 | K35: =IF($I$22=FALSE,0,Tablas!F$503) -> 300 | L35: =IF($I$22=FALSE,0,Tablas!G$503) -> 300 | M35: =IF($I$22=FALSE,0,Tablas!H$503) -> 300
F36: TOTAL PRIMA NETA : | H36: n/a | I36: =SUM(I31:I35) -> 2660 | J36: 2148 | K36: 1710 | L36: 1509 | M36: 1216
F37: Costo Administrativo Anual : | H37: n/a | I37: 75 | J37: 75 | K37: 75 | L37: 75 | M37: 75
F38: GRAN TOTAL : | H38: n/a | I38: =SUM(I36:I37) -> 2735 | J38: =SUM(J36:J37) -> 2223 | K38: =SUM(K36:K37) -> 1785 | L38: =SUM(L36:L37) -> 1584 | M38: =SUM(M36:M37) -> 1291
F40: Tarifas Semestrales
F41: Prima de Titular : | H41: n/a | I41: =VLOOKUP($M$16,Tablas!$A$508:$H$531,4,TRUE) -> 1250.8 | J41: =VLOOKUP($M$16,Tablas!$A$508:$H$531,5,TRUE) -> 979.44 | K41: =VLOOKUP($M$16,Tablas!$A$508:$H$531,6,TRUE) -> 747.3 | L41: =VLOOKUP($M$16,Tablas!$A$508:$H$531,7,TRUE) -> 640.77 | M41: =VLOOKUP($M$16,Tablas!$A$508:$H$531,8,TRUE) -> 485.48
F42: Prima de Cónyuge | H42: n/a | I42: =IF($J$16=1,0,(VLOOKUP($M$18,Tablas!$A$508:$H$531,4,TRUE))) -> 0 | J42: =IF($J$16=1,0,(VLOOKUP($M$18,Tablas!$A$508:$H$531,5,TRUE))) -> 0 | K42: =IF($J$16=1,0,(VLOOKUP($M$18,Tablas!$A$508:$H$531,6,TRUE))) -> 0 | L42: =IF($J$16=1,0,(VLOOKUP($M$18,Tablas!$A$508:$H$531,7,TRUE))) -> 0 | M42: =IF($J$16=1,0,(VLOOKUP($M$18,Tablas!$A$508:$H$531,8,TRUE))) -> 0
F43: Primas Hijos : | H43: n/a | I43: =IF($J$18=0,0,(VLOOKUP($J$18,Tablas!$A$532:$H$534,4,TRUE))) -> 0 | J43: =IF($J$18=0,0,(VLOOKUP($J$18,Tablas!$A$532:$H$534,5,TRUE))) -> 0 | K43: =IF($J$18=0,0,(VLOOKUP($J$18,Tablas!$A$532:$H$534,6,TRUE))) -> 0 | L43: =IF($J$18=0,0,(VLOOKUP($J$18,Tablas!$A$532:$H$534,7,TRUE))) -> 0 | M43: =IF($J$18=0,0,(VLOOKUP($J$18,Tablas!$A$532:$H$534,8,TRUE))) -> 0
F44: Prima Rider Complic. Maternidad | H44: n/a | I44: =+IF($I$20=FALSE,0,Tablas!D$535) -> 0 | J44: =+IF($I$20=FALSE,0,Tablas!E$535) -> 0 | K44: =+IF($I$20=FALSE,0,Tablas!F$535) -> 0 | L44: =+IF($I$20=FALSE,0,Tablas!G$535) -> 0 | M44: =+IF($I$20=FALSE,0,Tablas!H$535) -> 0
F45: Prima Rider Trasplante Organos | H45: n/a | I45: =IF($I$22=FALSE,0,Tablas!D$536) -> 159 | J45: =IF($I$22=FALSE,0,Tablas!E$536) -> 159 | K45: =IF($I$22=FALSE,0,Tablas!F$536) -> 159 | L45: =IF($I$22=FALSE,0,Tablas!G$536) -> 159 | M45: =IF($I$22=FALSE,0,Tablas!H$536) -> 159
F46: TOTAL PRIMA NETA : | H46: n/a | I46: =SUM(I41:I45) -> 1409.8 | J46: 1138.44 | K46: 906.3 | L46: 799.77 | M46: 644.48
F47: Costo Administrativo Anual : | H47: n/a | I47: 75 | J47: 75 | K47: 75 | L47: 75 | M47: 75
F48: GRAN TOTAL (1ra Cuota) : | H48: n/a | I48: =SUM(I46:I47) -> 1484.8 | J48: =SUM(J46:J47) -> 1213.44 | K48: =SUM(K46:K47) -> 981.3 | L48: =SUM(L46:L47) -> 874.77 | M48: =SUM(M46:M47) -> 719.48
F49: GRAN TOTAL (2da Cuota) : | H49: n/a | I49: =I46 -> 1409.8 | J49: =J46 -> 1138.44 | K49: 906.3 | L49: 799.77 | M49: 644.48
F50: Tarifas en US$ — Válidas desde 01 enero de 2022
F52: Este presupuesto solamente tiene carácter informativo y en ningún momento expresa compromiso legal para suministrarle cobertura de seguro. La emisión de una póliza de seguro Bupa está sujeta a todas las evaluaciones de riesgo por parte de Bupa y a la recepción de todos los pagos de prima requeridos.

Sheet Critical
C10: Cotización de Seguro Médico Internacional - Bupa CRITICAL Care
H12: =+'INGRESO DE DATOS'!$D$14 -> NOMBRE COMPLETO
H14: =+'INGRESO DE DATOS'!$D$23 -> AGENTE
J16: =+'INGRESO DE DATOS'!$G$16 -> 1 | M16: =+'INGRESO DE DATOS'!$G$18 -> 18
F17: FECHA DE COTIZACION :
F18: =NOW() -> 2022-01-06T13:36:44.600 | J18: =+'INGRESO DE DATOS'!$J$16 -> 0 | M18: =+'INGRESO DE DATOS'!$J$18 -> 46
J20: TRUE | M20: =IF(M16>=M18,M16,M18) -> 46
F22: CONDICION CRITICA CUBIERTA | I22: MAXIMO POR AÑO POLIZA | K22: TRASPLANTE DE ORGANOS
F24: Enfermedades neurológicas y accidentes cerebro-vasculares | I24: 150000 | K24: Tipo de trasplante | M24: Máximo Vitalicio
I25: por asegurado por año póliza | M25: por persona
F26: Cirugías cardíacas y angioplastías | I26: 150000 | K26: Corazón | M26: 300000
I27: por asegurado por año póliza | K27: Corazón y Pulmón (simultáneamente) | M27: 300000
F28: Tratamiento de cáncer | I28: 200000 | K28: Pulmón | M28: 250000
I29: por asegurado por año póliza | K29: Pancreas | M29: 250000
F30: Trauma grave (Politraumatismos) | I30: 150000 | K30: Pancreas y Riñón (simultáneamente) | M30: 300000
I31: por asegurado por año póliza | K31: Riñón | M31: 200000
F32: Insuficiencia renal crónica (Diálisis) | I32: 100000 | K32: Hígado | M32: 200000
I33: por asegurado por año póliza | K33: Médula ósea | M33: 250000
F34: Quemaduras graves | I34: 300000 | K34: La cobertura de trasplante de órganos está limitada a la Red de Proveedores para Procedimiento de Trasplante de la Compañía y no se proporcionará cobertura en proveedores fuera de esta Red especializada.
I35: por asegurado por año póliza
F36: Desorden infeccioso grave (Septicemia) | I36: 150000
I37: por asegurado por año póliza
F39: Deducibles | H39: PLAN 1 | I39: PLAN 2 | J39: PLAN 3 | K39: PLAN 4 | L39: PLAN 5 | M39: PLAN 6
F40: Dentro del pais de residencia | H40: 2000 | I40: 3500 | J40: 5000 | K40: 10000 | L40: 20000 | M40: 50000
F41: Fuera del pais de residencia | H41: 2000 | I41: 3500 | J41: 5000 | K41: 10000 | L41: 20000 | M41: 50000
F43: Tarifas Anuales
F44: Prima por plan individual : | H44: =IF((($J$16+$J$18)=1),(VLOOKUP($M$20,Tablas!$A$543:$T$544,3,TRUE)),0) -> 2255 | I44: =IF((($J$16+$J$18)=1),(VLOOKUP($M$20,Tablas!$A$543:$T$544,6,TRUE)),0) -> 1964 | J44: =IF((($J$16+$J$18)=1),(VLOOKUP($M$20,Tablas!$A$543:$T$544,9,TRUE)),0) -> 1682 | K44: =IF((($J$16+$J$18)=1),(VLOOKUP($M$20,Tablas!$A$543:$T$544,12,TRUE)),0) -> 1292 | L44: =IF((($J$16+$J$18)=1),(VLOOKUP($M$20,Tablas!$A$543:$T$544,15,TRUE)),0) -> 917 | M44: =IF((($J$16+$J$18)=1),(VLOOKUP($M$20,Tablas!$A$543:$T$544,18,TRUE)),0) -> 516
F45: Prima por plan para 2 personas : | H45: =IF((($J$16+$J$18)=2),(VLOOKUP($M$20,Tablas!$A$543:$T$544,4,TRUE)),0) -> 0 | I45: =IF((($J$16+$J$18)=2),(VLOOKUP($M$20,Tablas!$A$543:$T$544,7,TRUE)),0) -> 0 | J45: =IF((($J$16+$J$18)=2),(VLOOKUP($M$20,Tablas!$A$543:$T$544,10,TRUE)),0) -> 0 | K45: =IF((($J$16+$J$18)=2),(VLOOKUP($M$20,Tablas!$A$543:$T$544,13,TRUE)),0) -> 0 | L45: =IF((($J$16+$J$18)=2),(VLOOKUP($M$20,Tablas!$A$543:$T$544,16,TRUE)),0) -> 0 | M45: =IF((($J$16+$J$18)=2),(VLOOKUP($M$20,Tablas!$A$543:$T$544,19,TRUE)),0) -> 0
F46: Prima por plan familiar : | H46: =IF((($J$16+$J$18)>=3),(VLOOKUP($M$20,Tablas!$A$543:$T$544,5,TRUE)),0) -> 0 | I46: =IF((($J$16+$J$18)>=3),(VLOOKUP($M$20,Tablas!$A$543:$T$544,8,TRUE)),0) -> 0 | J46: =IF((($J$16+$J$18)>=3),(VLOOKUP($M$20,Tablas!$A$543:$T$544,11,TRUE)),0) -> 0 | K46: =IF((($J$16+$J$18)>=3),(VLOOKUP($M$20,Tablas!$A$543:$T$544,14,TRUE)),0) -> 0 | L46: =IF((($J$16+$J$18)>=3),(VLOOKUP($M$20,Tablas!$A$543:$T$544,17,TRUE)),0) -> 0 | M46: =IF((($J$16+$J$18)>=3),(VLOOKUP($M$20,Tablas!$A$543:$T$544,20,TRUE)),0) -> 0
F47: TOTAL PRIMA NETA : | H47: =SUM(H44:H46) -> 2255 | I47: =SUM(I44:I46) -> 1964 | J47: 1682 | K47: 1292 | L47: 917 | M47: 516
F48: Costo Administrativo Anual : | H48: 75 | I48: 75 | J48: 75 | K48: 75 | L48: 75 | M48: 75
F49: GRAN TOTAL : | H49: =SUM(H47:H48) -> 2330 | I49: 2039 | J49: 1757 | K49: 1367 | L49: 992 | M49: 591
F50: Tarifas en US$ — Válidas desde 01 enero de 2022
F53: Este presupuesto solamente tiene carácter informativo y en ningún momento expresa compromiso legal para suministrarle cobertura de seguro. La emisión de una póliza de seguro Bupa está sujeta a todas las evaluaciones de riesgo por parte de Bupa y a la recepción de todos los pagos de prima requeridos.

Sheet Resumen tarifas anuales
C12: Cotización de Seguro Médico Internacional - BUPA CARE
C14: =+'INGRESO DE DATOS'!$D$14 -> NOMBRE COMPLETO
C16: =+'INGRESO DE DATOS'!$D$23 -> AGENTE
E18: =+'INGRESO DE DATOS'!$G$16 -> 1 | H18: =+'INGRESO DE DATOS'!$G$18 -> 18
A19: FECHA DE COTIZACION :
A20: =NOW() -> 2022-01-06T13:36:44.600 | E20: =+'INGRESO DE DATOS'!$J$16 -> 0 | H20: =+'INGRESO DE DATOS'!$J$18 -> 46
A22: Deducibles | C22: PLAN 1 | D22: PLAN 2 | E22: PLAN 3 | F22: PLAN 4 | G22: PLAN 5 | H22: PLAN 6
A23: Dentro del pais de residencia | C23: n/a | D23: 1000 | E23: 2000 | F23: 5000 | G23: 10000 | H23: 20000
A24: Fuera del pais de residencia | C24: n/a | D24: 2000 | E24: 3000 | F24: 5000 | G24: 10000 | H24: 20000
A26: PRODUCTOS | C26: Tarifas Anuales
A27: Bupa Exclusive Care | C27: n/a | D27: =+Exclusive!I37 -> 8638 | E27: =+Exclusive!J37 -> 5740 | F27: =+Exclusive!K37 -> 4118 | G27: =+Exclusive!L37 -> 2928 | H27: =+Exclusive!M37 -> 2318
A28: Bupa Privilege Care | C28: n/a | D28: =+Privilege!I37 -> 7278 | E28: =+Privilege!J37 -> 5027 | F28: =+Privilege!K37 -> 3585 | G28: =+Privilege!L37 -> 2538 | H28: =+Privilege!M37 -> 1951
A29: Bupa Advantage Care | C29: n/a | D29: =+'Advantage (Mundial)'!I38 -> 4824 | E29: =+'Advantage (Mundial)'!J38 -> 3645 | F29: =+'Advantage (Mundial)'!K38 -> 2783 | G29: =+'Advantage (Mundial)'!L38 -> 2136 | H29: =+'Advantage (Mundial)'!M38 -> 1709
A30: Bupa Secure Care | C30: n/a | D30: =+Secure!I38 -> 3447 | E30: =+Secure!J38 -> 2720 | F30: =+Secure!K38 -> 2091 | G30: =+Secure!L38 -> 1802 | H30: =+Secure!M38 -> 1392
A31: Bupa Essential Care | C31: n/a | D31: =+Essential!I38 -> 2735 | E31: =+Essential!J38 -> 2223 | F31: =+Essential!K38 -> 1785 | G31: =+Essential!L38 -> 1584 | H31: =+Essential!M38 -> 1291
A33: Deducibles | C33: PLAN 1 | D33: PLAN 2 | E33: PLAN 3 | F33: PLAN 4 | G33: PLAN 5 | H33: PLAN 6
A34: Dentro del pais de residencia | C34: 2000 | D34: 3500 | E34: 5000 | F34: 10000 | G34: 20000 | H34: 50000
A35: Fuera del pais de residencia | C35: 2000 | D35: 3500 | E35: 5000 | F35: 10000 | G35: 20000 | H35: 50000
C36: Tarifas Anuales
A37: Bupa Critical Care | C37: =+Critical!H49 -> 2330 | D37: =+Critical!I49 -> 2039 | E37: =+Critical!J49 -> 1757 | F37: =+Critical!K49 -> 1367 | G37: =+Critical!L49 -> 992 | H37: =+Critical!M49 -> 591
A38: Tarifas en US$ — Válidas desde 01 enero de 2022
A40: Este presupuesto solamente tiene carácter informativo y en ningún momento expresa compromiso legal para suministrarle cobertura de seguro. La emisión de una póliza de seguro Bupa está sujeta a todas las evaluaciones de riesgo por parte de Bupa y a la recepción de todos los pagos de prima requeridos.

Sheet Comparacion de Beneficios
B2: 2022 BUPA CARE COMPARACION DE BENEFICIOS

Sheet Tablas (hidden)
A2: EXCLUSIVE | J2: FACTOR SEMESTRAL : | L2: 0.53
A3: TARIFAS ANUALES
A4: EDAD | J4: Valor original | P4: Con 70%
D5: DW2 | E5: DW3 | F5: DW4 | G5: DW5 | H5: DW6 | J5: DW2 | K5: DW3 | L5: DW4 | M5: DW5 | N5: DW6 | P5: DW2 | Q5: DW3 | R5: DW4 | S5: DW5 | T5: DW6
A6: 18 | B6: - 24 | D6: =P6 -> 8563 | E6: =Q6 -> 5665 | F6: =R6 -> 4043 | G6: =S6 -> 2853 | H6: =T6 -> 2243 | J6: 8563 | K6: 5665 | L6: 4043 | M6: 2853 | N6: 2243 | P6: =(J6-50)*1+50 -> 8563 | Q6: =(K6-50)*1+50 -> 5665 | R6: 4043 | S6: 2853 | T6: 2243
A7: 25 | B7: - 29 | D7: 8982 | E7: 6257 | F7: 4476 | G7: 3155 | H7: 2483 | J7: 8982 | K7: 6257 | L7: 4476 | M7: 3155 | N7: 2483 | P7: =(J7-50)*1+50 -> 8982 | Q7: =(K7-50)*1+50 -> 6257 | R7: =(L7-50)*1+50 -> 4476 | S7: =(M7-50)*1+50 -> 3155 | T7: =(N7-50)*1+50 -> 2483
A8: 30 | B8: - 34 | D8: 9341 | E8: 6708 | F8: 5011 | G8: 3777 | H8: 2980 | J8: 9341 | K8: 6708 | L8: 5011 | M8: 3777 | N8: 2980 | P8: 9341 | Q8: 6708 | R8: 5011 | S8: 3777 | T8: 2980
A9: 35 | B9: - 39 | D9: 10465 | E9: 7512 | F9: 5614 | G9: 4233 | H9: 3337 | J9: 10465 | K9: 7512 | L9: 5614 | M9: 4233 | N9: 3337 | P9: 10465 | Q9: 7512 | R9: 5614 | S9: 4233 | T9: 3337
A10: 40 | B10: - 44 | D10: 12127 | E10: 8209 | F10: 6231 | G10: 4649 | H10: 3666 | J10: 12127 | K10: 8209 | L10: 6231 | M10: 4649 | N10: 3666 | P10: 12127 | Q10: 8209 | R10: 6231 | S10: 4649 | T10: 3666
A11: 45 | B11: - 49 | D11: 13555 | E11: 9183 | F11: 6957 | G11: 5198 | H11: 4097 | J11: 13555 | K11: 9183 | L11: 6957 | M11: 5198 | N11: 4097 | P11: 13555 | Q11: 9183 | R11: 6957 | S11: 5198 | T11: 4097
A12: 50 | B12: - 54 | D12: 17347 | E12: 12042 | F12: 9080 | G12: 7340 | H12: 5790 | J12: 17347 | K12: 12042 | L12: 9080 | M12: 7340 | N12: 5790 | P12: 17347 | Q12: 12042 | R12: 9080 | S12: 7340 | T12: 5790
A13: 55 | B13: - 59 | D13: 18452 | E13: 12814 | F13: 9660 | G13: 7808 | H13: 6162 | J13: 18452 | K13: 12814 | L13: 9660 | M13: 7808 | N13: 6162 | P13: 18452 | Q13: 12814 | R13: 9660 | S13: 7808 | T13: 6162
A14: 60 | D14: 20099 | E14: 13979 | F14: 11110 | G14: 9402 | H14: 7653 | J14: 20099 | K14: 13979 | L14: 11110 | M14: 9402 | N14: 7653 | P14: 20099 | Q14: 13979 | R14: 11110 | S14: 9402 | T14: 7653
A15: 61 | D15: 21596 | E15: 15020 | F15: 11927 | G15: 10105 | H15: 8219 | J15: 21596 | K15: 15020 | L15: 11927 | M15: 10105 | N15: 8219 | P15: 21596 | Q15: 15020 | R15: 11927 | S15: 10105 | T15: 8219
A16: 62 | D16: 23645 | E16: 16445 | F16: 13069 | G16: 11057 | H16: 8998 | J16: 23645 | K16: 16445 | L16: 13069 | M16: 11057 | N16: 8998 | P16: 23645 | Q16: 16445 | R16: 13069 | S16: 11057 | T16: 8998
A17: 63 | D17: 25137 | E17: 17485 | F17: 13889 | G17: 11764 | H17: 9569 | J17: 25137 | K17: 17485 | L17: 13889 | M17: 11764 | N17: 9569 | P17: 25137 | Q17: 17485 | R17: 13889 | S17: 11764 | T17: 9569
A18: 64 | D18: 27190 | E18: 18922 | F18: 15028 | G18: 12724 | H18: 10351 | J18: 27190 | K18: 18922 | L18: 15028 | M18: 12724 | N18: 10351 | P18: 27190 | Q18: 18922 | R18: 15028 | S18: 12724 | T18: 10351
A19: 65 | D19: 35537 | E19: 24676 | F19: 18996 | G19: 16964 | H19: 14593 | J19: 35537 | K19: 24676 | L19: 18996 | M19: 16964 | N19: 14593 | P19: 35537 | Q19: 24676 | R19: 18996 | S19: 16964 | T19: 14593
A20: 66 | D20: 41283 | E20: 28668 | F20: 22074 | G20: 19714 | H20: 16955 | J20: 41283 | K20: 28668 | L20: 22074 | M20: 19714 | N20: 16955 | P20: 41283 | Q20: 28668 | R20: 22074 | S20: 19714 | T20: 16955
A21: 67 | D21: 45094 | E21: 31309 | F21: 24110 | G21: 21531 | H21: 18515 | J21: 45094 | K21: 31309 | L21: 24110 | M21: 21531 | N21: 18515 | P21: 45094 | Q21: 31309 | R21: 24110 | S21: 21531 | T21: 18515
A22: 68 | D22: 49927 | E22: 34666 | F22: 26692 | G22: 23843 | H22: 20507 | J22: 49927 | K22: 34666 | L22: 26692 | M22: 23843 | N22: 20507 | P22: 49927 | Q22: 34666 | R22: 26692 | S22: 23843 | T22: 20507
A23: 69 | D23: 54936 | E23: 38147 | F23: 29366 | G23: 26228 | H23: 22560 | J23: 54936 | K23: 38147 | L23: 29366 | M23: 26228 | N23: 22560 | P23: 54936 | Q23: 38147 | R23: 29366 | S23: 26228 | T23: 22560
A24: 70 | D24: 67606 | E24: 46441 | F24: 34571 | G24: 30562 | H24: 26531 | J24: 67606 | K24: 46441 | L24: 34571 | M24: 30562 | N24: 26531 | P24: 67606 | Q24: 46441 | R24: 34571 | S24: 30562 | T24: 26531
A25: 71 | D25: 70260 | E25: 48267 | F25: 35928 | G25: 31764 | H25: 27573 | J25: 70260 | K25: 48267 | L25: 35928 | M25: 31764 | N25: 27573 | P25: 70260 | Q25: 48267 | R25: 35928 | S25: 31764 | T25: 27573
A26: 72 | D26: 72252 | E26: 49625 | F26: 36941 | G26: 32662 | H26: 28360 | J26: 72252 | K26: 49625 | L26: 36941 | M26: 32662 | N26: 28360 | P26: 72252 | Q26: 49625 | R26: 36941 | S26: 32662 | T26: 28360
A27: 73 | D27: 74905 | E27: 51450 | F27: 38299 | G27: 33866 | H27: 29399 | J27: 74905 | K27: 51450 | L27: 38299 | M27: 33866 | N27: 29399 | P27: 74905 | Q27: 51450 | R27: 38299 | S27: 33866 | T27: 29399
A28: 74 | D28: 76229 | E28: 52358 | F28: 38979 | G28: 34461 | H28: 29918 | J28: 76229 | K28: 52358 | L28: 38979 | M28: 34461 | N28: 29918 | P28: 76229 | Q28: 52358 | R28: 38979 | S28: 34461 | T28: 29918
A29: 75 | B29: o más | D29: 79548 | E29: 54641 | F29: 40673 | G29: 35963 | H29: 31222 | J29: 79548 | K29: 54641 | L29: 40673 | M29: 35963 | N29: 31222 | P29: 79548 | Q29: 54641 | R29: 40673 | S29: 35963 | T29: 31222
A30: 1 | B30: Hijo | D30: 2974 | E30: 2188 | F30: 1801 | G30: 1502 | H30: 1173 | J30: 2974 | K30: 2188 | L30: 1801 | M30: 1502 | N30: 1173 | P30: =J30*1 -> 2974 | Q30: =K30*1 -> 2188 | R30: 1801 | S30: 1502 | T30: 1173
A31: 2 | B31: Hijos | D31: 4725 | E31: 3484 | F31: 2861 | G31: 2387 | H31: 1857 | J31: 4725 | K31: 3484 | L31: 2861 | M31: 2387 | N31: 1857 | P31: =J31*1 -> 4725 | Q31: =K31*1 -> 3484 | R31: =L31*1 -> 2861 | S31: =M31*1 -> 2387 | T31: =N31*1 -> 1857
A32: 3 | B32: Hijos o más | D32: 6929 | E32: 5100 | F32: 4195 | G32: 3500 | H32: 2726 | J32: 6929 | K32: 5100 | L32: 4195 | M32: 3500 | N32: 2726 | P32: 6929 | Q32: 5100 | R32: 4195 | S32: 3500 | T32: 2726
A33: 1 | B33: Rider Comp. Maternidad | D33: 0 | E33: 0 | F33: 225 | G33: 225 | H33: 225
A34: 1 | B34: Transplante de organos | D34: 0 | E34: 0 | F34: 0 | G34: 0 | H34: 0
A36: TARIFAS SEMESTRALES
A37: EDAD
D38: DW2 | E38: DW3 | F38: DW4 | G38: DW5 | H38: DW6
A39: 18 | B39: - 24 | D39: =D6*$L$2 -> 4538.39 | E39: =E6*$L$2 -> 3002.45 | F39: 2142.79 | G39: 1512.09 | H39: 1188.79
A40: 25 | B40: - 29 | D40: =D7*$L$2 -> 4760.46 | E40: 3316.21 | F40: 2372.28 | G40: 1672.15 | H40: 1315.99
A41: 30 | B41: - 34 | D41: =D8*$L$2 -> 4950.73 | E41: 3555.24 | F41: 2655.83 | G41: 2001.81 | H41: 1579.4
A42: 35 | B42: - 39 | D42: =D9*$L$2 -> 5546.45 | E42: 3981.36 | F42: 2975.42 | G42: 2243.49 | H42: 1768.61
A43: 40 | B43: - 44 | D43: =D10*$L$2 -> 6427.31 | E43: 4350.77 | F43: 3302.43 | G43: 2463.97 | H43: 1942.98
A44: 45 | B44: - 49 | D44: =D11*$L$2 -> 7184.15 | E44: 4866.99 | F44: 3687.21 | G44: 2754.94 | H44: 2171.41
A45: 50 | B45: - 54 | D45: =D12*$L$2 -> 9193.91 | E45: 6382.26 | F45: 4812.4 | G45: 3890.2 | H45: 3068.7
A46: 55 | B46: - 59 | D46: =D13*$L$2 -> 9779.56 | E46: 6791.42 | F46: 5119.8 | G46: 4138.24 | H46: 3265.86
A47: 60 | D47: =D14*$L$2 -> 10652.47 | E47: 7408.87 | F47: 5888.3 | G47: 4983.06 | H47: 4056.09
A48: 61 | D48: =D15*$L$2 -> 11445.88 | E48: 7960.6 | F48: 6321.31 | G48: 5355.65 | H48: 4356.07
A49: 62 | D49: =D16*$L$2 -> 12531.85 | E49: 8715.85 | F49: 6926.57 | G49: 5860.21 | H49: 4768.94
A50: 63 | D50: =D17*$L$2 -> 13322.61 | E50: 9267.05 | F50: 7361.17 | G50: 6234.92 | H50: 5071.57
A51: 64 | D51: =D18*$L$2 -> 14410.7 | E51: 10028.66 | F51: 7964.84 | G51: 6743.72 | H51: =H18*$L$2 -> 5486.03
A52: 65 | D52: =D19*$L$2 -> 18834.61 | E52: 13078.28 | F52: 10067.88 | G52: 8990.92 | H52: 7734.29
A53: 66 | D53: =D20*$L$2 -> 21879.99 | E53: 15194.04 | F53: 11699.22 | G53: 10448.42 | H53: 8986.15
A54: 67 | D54: =D21*$L$2 -> 23899.82 | E54: 16593.77 | F54: 12778.3 | G54: 11411.43 | H54: 9812.95
A55: 68 | D55: =D22*$L$2 -> 26461.31 | E55: 18372.98 | F55: 14146.76 | G55: 12636.79 | H55: 10868.71
A56: 69 | D56: =D23*$L$2 -> 29116.08 | E56: 20217.91 | F56: 15563.98 | G56: 13900.84 | H56: 11956.8
A57: 70 | D57: =D24*$L$2 -> 35831.18 | E57: 24613.73 | F57: 18322.63 | G57: 16197.86 | H57: 14061.43
A58: 71 | D58: =D25*$L$2 -> 37237.8 | E58: 25581.51 | F58: 19041.84 | G58: 16834.92 | H58: 14613.69
A59: 72 | D59: =D26*$L$2 -> 38293.56 | E59: 26301.25 | F59: 19578.73 | G59: 17310.86 | H59: 15030.8
A60: 73 | D60: =D27*$L$2 -> 39699.65 | E60: 27268.5 | F60: 20298.47 | G60: 17948.98 | H60: 15581.47
A61: 74 | D61: =D28*$L$2 -> 40401.37 | E61: 27749.74 | F61: 20658.87 | G61: 18264.33 | H61: 15856.54
A62: 75 | B62: o más | D62: =D29*$L$2 -> 42160.44 | E62: 28959.73 | F62: 21556.69 | G62: 19060.39 | H62: 16547.66
A63: 1 | B63: Hijo | D63: =D30*$L$2 -> 1576.22 | E63: 1159.64 | F63: 954.53 | G63: 796.06 | H63: 621.69
A64: 2 | B64: Hijos | D64: =D31*$L$2 -> 2504.25 | E64: 1846.52 | F64: 1516.33 | G64: 1265.11 | H64: 984.21
A65: 3 | B65: Hijos o más | D65: =D32*$L$2 -> 3672.37 | E65: 2703 | F65: 2223.35 | G65: 1855 | H65: 1444.78
A66: 1 | B66: Rider Comp. Maternidad | D66: =+D33*$L$2 -> 0 | E66: 0 | F66: 119.25 | G66: 119.25 | H66: 119.25
A67: 1 | B67: Transplante de organos | D67: 0 | E67: 0 | F67: 0 | G67: 0 | H67: 0
A69: DIAMOND (LATINAMERICA ONLY)
A70: TARIFAS ANUALES
A71: EDAD
A73: 18 | B73: - 24
A74: 25 | B74: - 29
A75: 30 | B75: - 34
A76: 35 | B76: - 39
A77: 40 | B77: - 44
A78: 45 | B78: - 49
A79: 50 | B79: - 54
A80: 55 | B80: - 59
A81: 60
A82: 61
A83: 62
A84: 63
A85: 64
A86: 65
A87: 66
A88: 67
A89: 68
A90: 69
A91: 70
A92: 71
A93: 72
A94: 73
A95: 74
A96: 75 | B96: o más
A97: 1 | B97: Hijo
A98: 2 | B98: Hijos
A99: 3 | B99: Hijos o más
A100: 1 | B100: Rider Comp. Maternidad
A101: 1 | B101: Transplante de organos
A103: TARIFAS SEMESTRALES
A104: EDAD
A106: 18 | B106: - 24
A107: 25 | B107: - 29
A108: 30 | B108: - 34
A109: 35 | B109: - 39
A110: 40 | B110: - 44
A111: 45 | B111: - 49
A112: 50 | B112: - 54
A113: 55 | B113: - 59
A114: 60
A115: 61
A116: 62
A117: 63
A118: 64
A119: 65
A120: 66
A121: 67
A122: 68
A123: 69
A124: 70
A125: 71
A126: 72
A127: 73
A128: 74
A129: 75 | B129: o más
A130: 1 | B130: Hijo
A131: 2 | B131: Hijos
A132: 3 | B132: Hijos o más
A133: 1 | B133: Rider Comp. Maternidad
A134: 1 | B134: Transplante de organos
A136: PRIVILEGE
A137: TARIFAS ANUALES
A138: EDAD | J138: ORIGINAL | P138: 0.7
D139: CW2 | E139: CW3 | F139: CW4 | G139: CW5 | H139: CW6 | J139: CW2 | K139: CW3 | L139: CW4 | M139: CW5 | N139: CW6 | P139: CW2 | Q139: CW3 | R139: CW4 | S139: CW5 | T139: CW6
A140: 18 | B140: - 24 | D140: =P140 -> 7203 | E140: =Q140 -> 4952 | F140: =R140 -> 3510 | G140: =S140 -> 2463 | H140: =T140 -> 1876 | J140: 7203 | K140: 4952 | L140: 3510 | M140: 2463 | N140: 1876 | P140: =(J140-50)*1+50 -> 7203 | Q140: =(K140-50)*1+50 -> 4952 | R140: 3510 | S140: 2463 | T140: 1876
A141: 25 | B141: - 29 | D141: 7557 | E141: 5475 | F141: 3889 | G141: 2730 | H141: 2084 | J141: 7557 | K141: 5475 | L141: 3889 | M141: 2730 | N141: 2084 | P141: =(J141-50)*1+50 -> 7557 | Q141: =(K141-50)*1+50 -> 5475 | R141: =(L141-50)*1+50 -> 3889 | S141: =(M141-50)*1+50 -> 2730 | T141: =(N141-50)*1+50 -> 2084
A142: 30 | B142: - 34 | D142: 7898 | E142: 5868 | F142: 4357 | G142: 3307 | H142: 2522 | J142: 7898 | K142: 5868 | L142: 4357 | M142: 3307 | N142: 2522 | P142: 7898 | Q142: 5868 | R142: 4357 | S142: 3307 | T142: 2522
A143: 35 | B143: - 39 | D143: 8841 | E143: 6567 | F143: 4881 | G143: 3704 | H143: 2825 | J143: 8841 | K143: 6567 | L143: 4881 | M143: 3704 | N143: 2825 | P143: 8841 | Q143: 6567 | R143: 4881 | S143: 3704 | T143: 2825
A144: 40 | B144: - 44 | D144: 10234 | E144: 7194 | F144: 5427 | G144: 4083 | H144: 3116 | J144: 10234 | K144: 7194 | L144: 5427 | M144: 4083 | N144: 3116 | P144: 10234 | Q144: 7194 | R144: 5427 | S144: 4083 | T144: 3116
A145: 45 | B145: - 49 | D145: 11428 | E145: 8041 | F145: 6072 | G145: 4561 | H145: 3486 | J145: 11428 | K145: 8041 | L145: 6072 | M145: 4561 | N145: 3486 | P145: 11428 | Q145: 8041 | R145: 6072 | S145: 4561 | T145: 3486
A146: 50 | B146: - 54 | D146: 14940 | E146: 10602 | F146: 7969 | G146: 6509 | H146: 4975 | J146: 14940 | K146: 10602 | L146: 7969 | M146: 6509 | N146: 4975 | P146: 14940 | Q146: 10602 | R146: 7969 | S146: 6509 | T146: 4975
A147: 55 | B147: - 59 | D147: 15897 | E147: 11280 | F147: 8480 | G147: 6927 | H147: 5296 | J147: 15897 | K147: 11280 | L147: 8480 | M147: 6927 | N147: 5296 | P147: 15897 | Q147: 11280 | R147: 8480 | S147: 6927 | T147: 5296
A148: 60 | D148: 17312 | E148: 12253 | F148: 9646 | G148: 8242 | H148: 6616 | J148: 17312 | K148: 12253 | L148: 9646 | M148: 8242 | N148: 6616 | P148: 17312 | Q148: 12253 | R148: 9646 | S148: 8242 | T148: 6616
A149: 61 | D149: 18597 | E149: 13160 | F149: 10361 | G149: 8851 | H149: 7105 | J149: 18597 | K149: 13160 | L149: 10361 | M149: 8851 | N149: 7105 | P149: 18597 | Q149: 13160 | R149: 10361 | S149: 8851 | T149: 7105
A150: 62 | D150: 20358 | E150: 14412 | F150: 11348 | G150: 9691 | H150: 7784 | J150: 20358 | K150: 14412 | L150: 11348 | M150: 9691 | N150: 7784 | P150: 20358 | Q150: 14412 | R150: 11348 | S150: 9691 | T150: 7784
A151: 63 | D151: 21646 | E151: 15319 | F151: 12063 | G151: 10303 | H151: 8275 | J151: 21646 | K151: 15319 | L151: 12063 | M151: 10303 | N151: 8275 | P151: 21646 | Q151: 15319 | R151: 12063 | S151: 10303 | T151: 8275
A152: 64 | D152: 23412 | E152: 16574 | F152: 13050 | G152: 11146 | H152: 8953 | J152: 23412 | K152: 16574 | L152: 13050 | M152: 11146 | N152: 8953 | P152: 23412 | Q152: 16574 | R152: 13050 | S152: 11146 | T152: 8953
A153: 65 | D153: 30601 | E153: 21618 | F153: 16502 | G153: 14860 | H153: 12621 | J153: 30601 | K153: 21618 | L153: 16502 | M153: 14860 | N153: 12621 | P153: 30601 | Q153: 21618 | R153: 16502 | S153: 14860 | T153: 12621
A154: 66 | D154: 35553 | E154: 25115 | F154: 19171 | G154: 17268 | H154: 14669 | J154: 35553 | K154: 25115 | L154: 19171 | M154: 17268 | N154: 14669 | P154: 35553 | Q154: 25115 | R154: 19171 | S154: 17268 | T154: 14669
A155: 67 | D155: 38834 | E155: 27434 | F155: 20937 | G155: 18860 | H155: 16016 | J155: 38834 | K155: 27434 | L155: 20937 | M155: 18860 | N155: 16016 | P155: 38834 | Q155: 27434 | R155: 20937 | S155: 18860 | T155: 16016
A156: 68 | D156: 43002 | E156: 30375 | F156: 23190 | G156: 20891 | H156: 17735 | J156: 43002 | K156: 30375 | L156: 23190 | M156: 20891 | N156: 17735 | P156: 43002 | Q156: 30375 | R156: 23190 | S156: 20891 | T156: 17735
A157: 69 | D157: 47308 | E157: 33417 | F157: 25511 | G157: 22978 | H157: 19514 | J157: 47308 | K157: 33417 | L157: 25511 | M157: 22978 | N157: 19514 | P157: 47308 | Q157: 33417 | R157: 25511 | S157: 22978 | T157: 19514
A158: 70 | D158: 58219 | E158: 40688 | F158: 30026 | G158: 26778 | H158: 22954 | J158: 58219 | K158: 40688 | L158: 30026 | M158: 26778 | N158: 22954 | P158: 58219 | Q158: 40688 | R158: 30026 | S158: 26778 | T158: 22954
A159: 71 | D159: 60504 | E159: 42279 | F159: 31209 | G159: 27825 | H159: 23854 | J159: 60504 | K159: 42279 | L159: 31209 | M159: 27825 | N159: 23854 | P159: 60504 | Q159: 42279 | R159: 31209 | S159: 27825 | T159: 23854
A160: 72 | D160: 62211 | E160: 43482 | F160: 32091 | G160: 28616 | H160: 24529 | J160: 62211 | K160: 43482 | L160: 32091 | M160: 28616 | N160: 24529 | P160: 62211 | Q160: 43482 | R160: 32091 | S160: 28616 | T160: 24529
A161: 73 | D161: 64508 | E161: 45077 | F161: 33269 | G161: 29666 | H161: 25432 | J161: 64508 | K161: 45077 | L161: 33269 | M161: 29666 | N161: 25432 | P161: 64508 | Q161: 45077 | R161: 33269 | S161: 29666 | T161: 25432
A162: 74 | D162: 65646 | E162: 45876 | F162: 33854 | G162: 30190 | H162: 25881 | J162: 65646 | K162: 45876 | L162: 33854 | M162: 30190 | N162: 25881 | P162: 65646 | Q162: 45876 | R162: 33854 | S162: 30190 | T162: 25881
A163: 75 | B163: o más | D163: 68501 | E163: 47867 | F163: 35330 | G163: 31506 | H163: 27008 | J163: 68501 | K163: 47867 | L163: 35330 | M163: 31506 | N163: 27008 | P163: 68501 | Q163: 47867 | R163: 35330 | S163: 31506 | T163: 27008
A164: 1 | B164: Hijo | D164: 2498 | E164: 1825 | F164: 1426 | G164: 1192 | H164: 882 | J164: 2498 | K164: 1825 | L164: 1426 | M164: 1192 | N164: 882 | P164: =J164*1 -> 2498 | Q164: =K164*1 -> 1825 | R164: 1426 | S164: 1192 | T164: 882
A165: 2 | B165: Hijos | D165: 3975 | E165: 2907 | F165: 2268 | G165: 1897 | H165: 1402 | J165: 3975 | K165: 2907 | L165: 2268 | M165: 1897 | N165: 1402 | P165: =J165*1 -> 3975 | Q165: =K165*1 -> 2907 | R165: =L165*1 -> 2268 | S165: =M165*1 -> 1897 | T165: =N165*1 -> 1402
A166: 3 | B166: Hijos o más | D166: 5823 | E166: 4260 | F166: 3325 | G166: 2778 | H166: 2057 | J166: 5823 | K166: 4260 | L166: 3325 | M166: 2778 | N166: 2057 | P166: 5823 | Q166: 4260 | R166: 3325 | S166: 2778 | T166: 2057
A167: 1 | B167: Rider Comp. Maternidad | D167: 0 | E167: 0 | F167: 225 | G167: 225 | H167: 225
A168: 1 | B168: Transplante de organos | D168: 0 | E168: 0 | F168: 0 | G168: 0 | H168: 0
A170: TARIFAS SEMESTRALES
A171: EDAD
D172: CW2 | E172: CW3 | F172: CW4 | G172: CW5 | H172: CW6
A173: 18 | B173: - 24 | D173: =D140*$L$2 -> 3817.59 | E173: =E140*$L$2 -> 2624.56 | F173: 1860.3 | G173: 1305.39 | H173: 994.28
A174: 25 | B174: - 29 | D174: =D141*$L$2 -> 4005.21 | E174: 2901.75 | F174: 2061.17 | G174: 1446.9 | H174: 1104.52
A175: 30 | B175: - 34 | D175: =D142*$L$2 -> 4185.94 | E175: 3110.04 | F175: 2309.21 | G175: 1752.71 | H175: 1336.66
A176: 35 | B176: - 39 | D176: =D143*$L$2 -> 4685.73 | E176: 3480.51 | F176: 2586.93 | G176: 1963.12 | H176: 1497.25
A177: 40 | B177: - 44 | D177: =D144*$L$2 -> 5424.02 | E177: 3812.82 | F177: 2876.31 | G177: 2163.99 | H177: 1651.48
A178: 45 | B178: - 49 | D178: =D145*$L$2 -> 6056.84 | E178: 4261.73 | F178: 3218.16 | G178: 2417.33 | H178: 1847.58
A179: 50 | B179: - 54 | D179: =D146*$L$2 -> 7918.2 | E179: 5619.06 | F179: 4223.57 | G179: 3449.77 | H179: 2636.75
A180: 55 | B180: - 59 | D180: =D147*$L$2 -> 8425.41 | E180: 5978.4 | F180: 4494.4 | G180: 3671.31 | H180: 2806.88
A181: 60 | D181: =D148*$L$2 -> 9175.36 | E181: 6494.09 | F181: 5112.38 | G181: 4368.26 | H181: 3506.48
A182: 61 | D182: =D149*$L$2 -> 9856.41 | E182: 6974.8 | F182: 5491.33 | G182: 4691.03 | H182: 3765.65
A183: 62 | D183: =D150*$L$2 -> 10789.74 | E183: 7638.36 | F183: 6014.44 | G183: 5136.23 | H183: 4125.52
A184: 63 | D184: =D151*$L$2 -> 11472.38 | E184: 8119.07 | F184: 6393.39 | G184: 5460.59 | H184: 4385.75
A185: 64 | D185: =D152*$L$2 -> 12408.36 | E185: 8784.22 | F185: 6916.5 | G185: 5907.38 | H185: 4745.09
A186: 65 | D186: =D153*$L$2 -> 16218.53 | E186: 11457.54 | F186: 8746.06 | G186: 7875.8 | H186: 6689.13
A187: 66 | D187: =D154*$L$2 -> 18843.09 | E187: 13310.95 | F187: 10160.63 | G187: 9152.04 | H187: 7774.57
A188: 67 | D188: =D155*$L$2 -> 20582.02 | E188: 14540.02 | F188: 11096.61 | G188: 9995.8 | H188: 8488.48
A189: 68 | D189: =D156*$L$2 -> 22791.06 | E189: 16098.75 | F189: 12290.7 | G189: 11072.23 | H189: 9399.55
A190: 69 | D190: =D157*$L$2 -> 25073.24 | E190: 17711.01 | F190: 13520.83 | G190: 12178.34 | H190: 10342.42
A191: 70 | D191: =D158*$L$2 -> 30856.07 | E191: 21564.64 | F191: 15913.78 | G191: 14192.34 | H191: 12165.62
A192: 71 | D192: =D159*$L$2 -> 32067.12 | E192: 22407.87 | F192: 16540.77 | G192: 14747.25 | H192: 12642.62
A193: 72 | D193: =D160*$L$2 -> 32971.83 | E193: 23045.46 | F193: 17008.23 | G193: 15166.48 | H193: 13000.37
A194: 73 | D194: =D161*$L$2 -> 34189.24 | E194: 23890.81 | F194: 17632.57 | G194: 15722.98 | H194: 13478.96
A195: 74 | D195: =D162*$L$2 -> 34792.38 | E195: 24314.28 | F195: 17942.62 | G195: 16000.7 | H195: 13716.93
A196: 75 | B196: o más | D196: =D163*$L$2 -> 36305.53 | E196: 25369.51 | F196: 18724.9 | G196: 16698.18 | H196: 14314.24
A197: 1 | B197: Hijo | D197: =D164*$L$2 -> 1323.94 | E197: 967.25 | F197: 755.78 | G197: 631.76 | H197: 467.46
A198: 2 | B198: Hijos | D198: =D165*$L$2 -> 2106.75 | E198: 1540.71 | F198: 1202.04 | G198: 1005.41 | H198: 743.06
A199: 3 | B199: Hijos o más | D199: =D166*$L$2 -> 3086.19 | E199: 2257.8 | F199: 1762.25 | G199: 1472.34 | H199: 1090.21
A200: 1 | B200: Rider Comp. Maternidad | D200: =+D167*$L$2 -> 0 | E200: 0 | F200: 119.25 | G200: 119.25 | H200: 119.25
A201: 1 | B201: Transplante de organos | D201: 0 | E201: 0 | F201: 0 | G201: 0 | H201: 0
A203: COMPLETE (LATINAMERICA ONLY)
A204: TARIFAS ANUALES
A205: EDAD
A207: 18 | B207: - 24
A208: 25 | B208: - 29
A209: 30 | B209: - 34
A210: 35 | B210: - 39
... 331 more rows
